[Event "EYCC Open-U16 2019"]
[Site "Bratislava"]
[Date "2019.08.06"]
[Round "5.47"]
[White "Akulov, Lev"]
[Black "Magold, Victor"]
[Result "1/2-1/2"]
[ECO "B43"]
[WhiteElo "2068"]
[BlackElo "1962"]
[Annotator "NA"]
[PlyCount "63"]
[EventDate "2019.08.02"]
[EventType "swiss"]
[EventCountry "SVK"]
[SourceTitle "playchess.com"]
[Source "ChessBase"]
[SourceQuality "1"]
[TimeControl "40/5400+30:1800+30"]

1. e4 {[%emt 0:00:00]} c5 {[%emt 0:00:00]} 2. Nf3 {[%emt 0:00:00]} e6 {[%emt 0:00:00]} 3. d4 {[%emt 0:00:00]} cxd4 {[%emt 0:00:00]} 4. Nxd4 {[%emt 0:00:00]} a6 {[%emt 0:00:00]} 5. Nc3 {[%emt 0:00:00]} Qc7 {[%emt 0:00:18]} 6. Bd3 {[%emt 0:00:55]} Nf6 {[%emt 0:00:55]} 7. O-O {[%emt 0:02:23]} Be7 {[%emt 0:00:46]} 8. Kh1 {[%emt 0:07:05]} Nc6 {[%emt 0:01:20]} 9. Nxc6 {[%emt 0:02:24]} bxc6 {[%emt 0:00:16]} 10. f4 {[%emt 0:00:41]} d5 {[%emt 0:00:28]} 11. e5 {[%emt 0:00:45]} Nd7 {[%emt 0:00:18]} 12. Qg4 {[%emt 0:01:35]} g6 {[%emt 0:00:43]} 13. Bd2 {[%emt 0:16:43]} Bb7 {[%emt 0:03:49]} 14. Rae1 {[%emt 0:05:26]} O-O-O {[%emt 0:16:03]} 15. Na4 {[%emt 0:05:53]} c5 {[%emt 0:11:20]} 16. b3 {[%emt 0:00:44]} Nb8 {[%emt 0:17:23]} 17. Qe2 {[%emt 0:05:04]} h5 {[%emt 0:16:01]} 18. Rb1 {[%emt 0:08:57]} Rdg8 {[%emt 0:15:08]} 19. c4 {[%emt 0:04:07]} d4 {[%emt 0:00:28]} 20. b4 {[%emt 0:01:30]} cxb4 {[%emt 0:06:55]} 21. Bxb4 {[%emt 0:00:32]} Bc6 {[%emt 0:02:25]} 22. Bxe7 {[%emt 0:00:47]} Qxe7 {[%emt 0:00:05]} 23. Nb6+ {[%emt 0:00:53]} Kc7 {[%emt 0:00:44]} 24. Qb2 {[%emt 0:04:31]} Qc5 {[%emt 0:02:00]} 25. Na4 {[%emt 0:11:53]} Bxa4 {[%emt 0:00:51]} 26. Qb7+ {[%emt 0:00:02]} Kd8 {[%emt 0:00:10]} 27. Qxb8+ {[%emt 0:00:05]} Ke7 {[%emt 0:00:08]} 28. Qb7+ {[%emt 0:08:29]} Bd7 {[%emt 0:00:06]} 29. Be4 {[%emt 0:00:52]} a5 {[%emt 0:02:59]} 30. Qa6 Bc8 31. Rb5 Qxc4 32. Qd6+ {Qc5 Qa6 Bxa6} 1/2-1/2

[Event "EYCC Open-U16 2019"]
[Site "Bratislava"]
[Date "2019.08.06"]
[Round "5.48"]
[White "Sanger, Jake M"]
[Black "Dabic, Stjepan"]
[Result "1-0"]
[ECO "A48"]
[WhiteElo "1867"]
[BlackElo "2102"]
[Annotator "NA"]
[PlyCount "45"]
[EventDate "2019.08.02"]
[EventType "swiss"]
[EventCountry "SVK"]
[SourceTitle "playchess.com"]
[Source "ChessBase"]
[SourceQuality "1"]
[TimeControl "40/5400+30:1800+30"]

1. d4 {[%emt 0:00:00]} Nf6 {[%emt 0:00:00]} 2. Nf3 {[%emt 0:00:00]} g6 {[%emt 0:00:00]} 3. Nc3 {[%emt 0:00:00]} d5 {[%emt 0:00:00]} 4. Bf4 {[%emt 0:00:00]} Bg7 {[%emt 0:00:11]} 5. e3 {[%emt 0:00:00]} Bg4 {[%emt 0:00:14]} 6. Be2 {[%emt 0:00:03]} c6 {[%emt 0:00:31]} 7. Ne5 {[%emt 0:00:13]} Bxe2 {[%emt 0:00:26]} 8. Qxe2 {[%emt 0:00:03]} Nh5 {[%emt 0:01:13]} 9. g4 {[%emt 0:06:04]} Nxf4 {[%emt 0:00:14]} 10. exf4 {[%emt 0:00:04]} Nd7 {[%emt 0:00:36]} 11. h4 {[%emt 0:20:24]} Qb6 {[%emt 0:05:21]} 12. O-O-O {[%emt 0:00:53]} O-O-O {[%emt 0:00:25]} 13. Nxf7 {[%emt 0:16:36]} Bxd4 {[%emt 0:00:10]} 14. Rh3 {[%emt 0:12:31]} Rhf8 {[%emt 0:04:30]} 15. Nxd8 {[%emt 0:01:10]} Kxd8 {[%emt 0:00:04]} 16. Na4 {[%emt 0:07:15]} Qb4 {[%emt 0:00:35]} 17. c3 {[%emt 0:00:23]} Qxa4 {[%emt 0:00:09]} 18. Rxd4 {[%emt 0:00:09]} Qxa2 {[%emt 0:00:53]} 19. c4 {[%emt 0:03:51]} Qa1+ {[%emt 0:01:40]} 20. Kc2 {[%emt 0:00:10]} e6 {[%emt 0:01:23]} 21. Ra3 {[%emt 0:05:51]} Qh1 {[%emt 0:00:27]} 22. cxd5 {[%emt 0:00:18]} exd5 {[%emt 0:00:28]} 23. Rxa7 {[%emt 0:00:34]} 1-0

[Event "EYCC Open-U16 2019"]
[Site "Bratislava"]
[Date "2019.08.07"]
[Round "6.1"]
[White "Teclaf, Pawel"]
[Black "Pogosyan, Stefan"]
[Result "1/2-1/2"]
[ECO "A05"]
[WhiteElo "2454"]
[BlackElo "2334"]
[Annotator "ChessBase"]
[PlyCount "53"]
[EventDate "2019.08.02"]
[EventType "swiss"]
[EventCountry "SVK"]
[SourceTitle "playchess.com"]
[Source "ChessBase"]
[SourceQuality "1"]
[TimeControl "40/5400+30:1800+30"]

1. Nf3 {[%emt 0:00:00]} Nf6 {[%emt 0:00:58]} 2. b3 {[%emt 0:00:00]} e6 {[%emt 0:02:22]} 3. Bb2 {[%emt 0:02:31]} b6 {[%emt 0:00:28]} 4. g3 {[%emt 0:01:49]} Bb7 {[%emt 0:00:10]} 5. Bg2 {[%emt 0:00:08]} Be7 {[%emt 0:01:22]} 6. O-O {[%emt 0:02:05]} O-O {[%emt 0:00:18]} 7. c4 {[%emt 0:01:16]} d5 {[%emt 0:03:53]} 8. e3 {[%emt 0:04:17]} c5 {[%emt 0:02:06]} 9. Qe2 {[%emt 0:01:43]} Nc6 {[%emt 0:05:22]} 10. Rd1 {[%emt 0:02:06]} Qc7 {[%emt 0:15:06]} 11. Nc3 {[%emt 0:02:55]} dxc4 {[%emt 0:10:07]} 12. bxc4 {[%emt 0:02:20]} Rad8 {[%emt 0:01:15]} 13. d3 {[%emt 0:14:07]} Rd7 {[%emt 0:01:49]} 14. Ne1 {[%emt 0:03:59]} Nb4 {[%emt 0:02:23]} 15. f4 {[%emt 0:03:35]} Bxg2 {[%emt 0:01:13]} 16. Kxg2 {[%emt 0:01:03]} Rfd8 {[%emt 0:03:22]} 17. g4 {[%emt 0:03:58]} a6 {[%emt 0:02:37]} 18. a3 {[%emt 0:02:45]} Nc6 {[%emt 0:00:33]} 19. Rab1 {[%emt 0:01:09]} Ne8 {[%emt 0:13:38]} 20. Ba1 {[%emt 0:04:29]} Bf8 {[%emt 0:00:52]} 21. h4 {[%emt 0:06:11]} Nd6 {[%emt 0:05:20]} 22. Nf3 {[%emt 0:04:22]} b5 {[%emt 0:04:50]} 23. cxb5 {[%emt 0:02:53]} Nxb5 {[%emt 0:01:33]} 24. Nxb5 {[%emt 0:05:14]} axb5 {[%emt 0:00:06]} 25. Rxb5 {[%emt 0:00:04]} Qa7 {[%emt 0:01:32]} 26. Rb3 {[%emt 0:09:43]} c4 {[%emt 0:05:23]} 27. Rc3 {[%emt 0:00:58]} 1/2-1/2

[Event "EYCC Open-U16 2019"]
[Site "Bratislava"]
[Date "2019.08.07"]
[Round "6.2"]
[White "Sahidi, Samir"]
[Black "Barseghyan, Armen Ar."]
[Result "1/2-1/2"]
[ECO "A48"]
[WhiteElo "2369"]
[BlackElo "2313"]
[Annotator "NA"]
[PlyCount "59"]
[EventDate "2019.08.02"]
[EventType "swiss"]
[EventCountry "SVK"]
[SourceTitle "playchess.com"]
[Source "ChessBase"]
[SourceQuality "1"]
[TimeControl "40/5400+30:1800+30"]

1. d4 {[%emt 0:00:00]} Nf6 {[%emt 0:01:05]} 2. Nf3 {[%emt 0:00:23]} g6 {[%emt 0:00:24]} 3. Bf4 {[%emt 0:01:12]} Bg7 {[%emt 0:00:26]} 4. e3 {[%emt 0:01:46]} d6 {[%emt 0:00:31]} 5. h3 {[%emt 0:01:16]} O-O {[%emt 0:00:56]} 6. Be2 {[%emt 0:02:12]} Nc6 {[%emt 0:01:14]} 7. c3 {[%emt 0:07:58]} Ne4 {[%emt 0:01:16]} 8. O-O {[%emt 0:07:17]} e5 {[%emt 0:02:18]} 9. Bh2 {[%emt 0:00:39]} f5 {[%emt 0:08:12]} 10. dxe5 {[%emt 0:03:23]} Nxe5 {[%emt 0:02:48]} 11. Nd4 {[%emt 0:12:53]} Kh8 {[%emt 0:01:58]} 12. Nd2 {[%emt 0:00:28]} Qe7 {[%emt 0:02:22]} 13. Qc2 {[%emt 0:02:04]} Nxd2 {[%emt 0:05:45]} 14. Qxd2 {[%emt 0:00:10]} Bd7 {[%emt 0:00:59]} 15. Rad1 {[%emt 0:03:44]} Rae8 {[%emt 0:06:53]} 16. Kh1 {[%emt 0:04:17]} g5 {[%emt 0:07:55]} 17. f4 {[%emt 0:04:10]} Ng6 {[%emt 0:04:08]} 18. fxg5 {[%emt 0:02:18]} Qxg5 {[%emt 0:05:36]} 19. Bf3 {[%emt 0:01:04]} b6 {[%emt 0:08:03]} 20. Bf4 {[%emt 0:04:37]} Nxf4 {[%emt 0:02:55]} 21. exf4 {[%emt 0:00:08]} Qg3 {[%emt 0:00:46]} 22. Bd5 {[%emt 0:17:11]} Re7 {[%emt 0:05:21]} 23. Rf3 {[%emt 0:02:32]} Qh4 {[%emt 0:00:35]} 24. Qf2 {[%emt 0:04:26]} Qxf2 {[%emt 0:00:14]} 25. Rxf2 {[%emt 0:00:07]} Rfe8 {[%emt 0:00:11]} 26. Kh2 {[%emt 0:01:42]} a5 {[%emt 0:06:46]} 27. Nc6 {[%emt 0:01:56]} Re2 {[%emt 0:01:11]} 28. Rd2 {[%emt 0:00:37]} R2e3 {[%emt 0:01:20]} 29. Rf3 {[%emt 0:02:49]} Re1 {[%emt 0:00:27]} 30. Rff2 {[%emt 0:01:33]} 1/2-1/2

[Event "EYCC Open-U16 2019"]
[Site "Bratislava"]
[Date "2019.08.07"]
[Round "6.3"]
[White "Ognean, Mihnea-Ionut"]
[Black "Globus, Or"]
[Result "1/2-1/2"]
[ECO "E20"]
[WhiteElo "2287"]
[BlackElo "2352"]
[Annotator "NA"]
[PlyCount "28"]
[EventDate "2019.08.02"]
[EventType "swiss"]
[EventCountry "SVK"]
[SourceTitle "playchess.com"]
[Source "ChessBase"]
[SourceQuality "1"]
[TimeControl "40/5400+30:1800+30"]

1. d4 {[%emt 0:00:00]} Nf6 {[%emt 0:00:00]} 2. c4 {[%emt 0:00:00]} e6 {[%emt 0:00:45]} 3. Nc3 {[%emt 0:00:09]} Bb4 {[%emt 0:00:06]} 4. f3 {[%emt 0:00:33]} c5 {[%emt 0:00:29]} 5. d5 {[%emt 0:00:11]} d6 {[%emt 0:01:04]} 6. e4 {[%emt 0:00:58]} b5 {[%emt 0:00:37]} 7. dxe6 {[%emt 0:00:40]} Bxe6 {[%emt 0:00:27]} 8. Bf4 {[%emt 0:00:03]} O-O {[%emt 0:02:27]} 9. Qxd6 {[%emt 0:00:04]} Qa5 {[%emt 0:00:24]} 10. Nge2 {[%emt 0:00:04]} Bxc4 {[%emt 0:00:41]} 11. a3 {[%emt 0:14:21]} Na6 {[%emt 0:01:24]} 12. Bg5 {[%emt 0:00:04]} Bxe2 {[%emt 0:08:40]} 13. Bxf6 {[%emt 0:00:06]} gxf6 {[%emt 0:00:54]} 14. Qxf6 {[%emt 0:00:05]} Bxc3+ {[%emt 0:03:10]} 1/2-1/2

[Event "EYCC Open-U16 2019"]
[Site "Bratislava"]
[Date "2019.08.07"]
[Round "6.4"]
[White "De Boer, Eelke"]
[Black "Milosevic, Milos"]
[Result "1-0"]
[ECO "C18"]
[WhiteElo "2279"]
[BlackElo "2312"]
[Annotator "NA"]
[PlyCount "89"]
[EventDate "2019.08.02"]
[EventType "swiss"]
[EventCountry "SVK"]
[SourceTitle "playchess.com"]
[Source "ChessBase"]
[SourceQuality "1"]
[TimeControl "40/5400+30:1800+30"]

1. e4 {[%emt 0:00:00]} e6 {[%emt 0:00:00]} 2. d4 {[%emt 0:00:00]} d5 {[%emt 0:00:00]} 3. Nc3 {[%emt 0:00:00]} Bb4 {[%emt 0:00:00]} 4. e5 {[%emt 0:00:06]} c5 {[%emt 0:00:00]} 5. a3 {[%emt 0:00:09]} Bxc3+ {[%emt 0:00:00]} 6. bxc3 {[%emt 0:00:13]} Qa5 {[%emt 0:00:00]} 7. Bd2 {[%emt 0:00:17]} Qa4 {[%emt 0:00:00]} 8. Qg4 {[%emt 0:00:09]} Kf8 {[%emt 0:00:00]} 9. Qd1 {[%emt 0:00:08]} b6 {[%emt 0:00:00]} 10. dxc5 {[%emt 0:05:19]} bxc5 {[%emt 0:01:19]} 11. Rb1 {[%emt 0:00:54]} Ba6 {[%emt 0:05:07]} 12. Bxa6 {[%emt 0:00:22]} Qxa6 {[%emt 0:02:01]} 13. Qe2 {[%emt 0:01:41]} Qc6 {[%emt 0:24:51]} 14. c4 {[%emt 0:21:47]} d4 {[%emt 0:05:04]} 15. Nf3 {[%emt 0:00:59]} Ne7 {[%emt 0:01:20]} 16. O-O {[%emt 0:01:52]} h6 {[%emt 0:00:05]} 17. c3 {[%emt 0:00:21]} dxc3 {[%emt 0:02:28]} 18. Bxc3 {[%emt 0:00:09]} Nc8 {[%emt 0:11:56]} 19. Rfd1 {[%emt 0:06:43]} Nd7 {[%emt 0:03:53]} 20. Rxd7 {[%emt 0:08:15]} Qxd7 {[%emt 0:01:48]} 21. Qe4 {[%emt 0:00:24]} Nb6 {[%emt 0:00:08]} 22. Rxb6 {[%emt 0:00:16]} axb6 {[%emt 0:08:02]} 23. Qxa8+ {[%emt 0:00:07]} Qe8 {[%emt 0:00:01]} 24. Qb7 {[%emt 0:00:12]} Qd8 {[%emt 0:00:41]} 25. Nd2 {[%emt 0:00:50]} Kg8 {[%emt 0:01:25]} 26. Qf3 {[%emt 0:12:07]} Qd7 {[%emt 0:04:25]} 27. Ne4 {[%emt 0:01:31]} Kh7 {[%emt 0:02:10]} 28. Nd6 {[%emt 0:05:15]} Rf8 {[%emt 0:00:12]} 29. g4 {[%emt 0:06:50]} Qa4 {[%emt 0:03:33]} 30. g5 {[%emt 0:02:08]} Qxa3 {[%emt 0:07:24]} 31. g6+ {[%emt 0:04:05]} Kxg6 {[%emt 0:00:40]} 32. Qd3+ {[%emt 0:00:12]} Kh5 {[%emt 0:00:12]} 33. Qe2+ {[%emt 0:08:05]} Kg6 {[%emt 0:00:19]} 34. Qc2+ {[%emt 0:00:54]} Kh5 {[%emt 0:00:15]} 35. Ne4 {[%emt 0:01:04]} Qa8 {[%emt 0:02:12]} 36. Ng3+ {[%emt 0:04:10]} Kh4 {[%emt 0:01:15]} 37. Qe2 {[%emt 0:00:58]} g6 {[%emt 0:01:06]} 38. Qe3 {[%emt 0:06:13]} g5 {[%emt 0:00:41]} 39. Qe2 {[%emt 0:00:25]} g4 {[%emt 0:01:08]} 40. Qe3 {[%emt 0:00:00]} Rh8 {[%emt 0:00:00]} 41. Ne4 {[%emt 0:00:35]} Kh5 {[%emt 0:06:37]} 42. Qf4 {[%emt 0:01:36]} f5 {[%emt 0:01:54]} 43. exf6 {[%emt 0:00:13]} Qd8 {[%emt 0:01:03]} 44. Ng3+ {[%emt 0:04:52]} Kh4 {[%emt 0:00:09]} 45. f7 {[%emt 0:00:20]} 1-0

[Event "EYCC Open-U16 2019"]
[Site "Bratislava"]
[Date "2019.08.07"]
[Round "6.5"]
[White "Dudin, Gleb"]
[Black "Juksta, Karolis"]
[Result "1/2-1/2"]
[ECO "A06"]
[WhiteElo "2283"]
[BlackElo "2261"]
[Annotator "NA"]
[PlyCount "131"]
[EventDate "2019.08.02"]
[EventType "swiss"]
[EventCountry "SVK"]
[SourceTitle "playchess.com"]
[Source "ChessBase"]
[SourceQuality "1"]
[TimeControl "40/5400+30:1800+30"]

1. Nf3 {[%emt 0:00:00]} d5 {[%emt 0:00:00]} 2. e3 {[%emt 0:00:03]} Nf6 {[%emt 0:00:02]} 3. c4 {[%emt 0:00:16]} e6 {[%emt 0:00:41]} 4. Nc3 {[%emt 0:00:33]} a6 {[%emt 0:05:27]} 5. a3 {[%emt 0:12:13]} b6 {[%emt 0:05:51]} 6. d4 {[%emt 0:08:03]} Bb7 {[%emt 0:11:06]} 7. Bd3 {[%emt 0:03:03]} Nbd7 {[%emt 0:00:48]} 8. O-O {[%emt 0:02:40]} Bd6 {[%emt 0:01:11]} 9. cxd5 {[%emt 0:13:17]} exd5 {[%emt 0:00:27]} 10. b4 {[%emt 0:00:07]} O-O {[%emt 0:00:48]} 11. Qb3 {[%emt 0:05:14]} Qe7 {[%emt 0:04:36]} 12. b5 {[%emt 0:15:04]} axb5 {[%emt 0:16:58]} 13. Nxb5 {[%emt 0:03:55]} c5 {[%emt 0:03:33]} 14. Nxd6 {[%emt 0:12:16]} Qxd6 {[%emt 0:00:02]} 15. Qb1 {[%emt 0:04:07]} Ba6 {[%emt 0:07:30]} 16. Re1 {[%emt 0:04:16]} Bxd3 {[%emt 0:09:35]} 17. Qxd3 {[%emt 0:00:01]} c4 {[%emt 0:04:28]} 18. Qc2 {[%emt 0:01:38]} b5 {[%emt 0:00:41]} 19. Rb1 {[%emt 0:06:03]} Rfb8 {[%emt 0:00:11]} 20. Nd2 {[%emt 0:02:14]} b4 {[%emt 0:04:20]} 21. axb4 {[%emt 0:01:38]} Rxb4 {[%emt 0:00:02]} 22. Bb2 {[%emt 0:02:59]} Ra2 {[%emt 0:02:30]} 23. Qc1 {[%emt 0:00:01]} Ne4 {[%emt 0:02:52]} 24. Nxe4 {[%emt 0:01:19]} dxe4 {[%emt 0:00:02]} 25. Bc3 {[%emt 0:00:24]} Rb3 {[%emt 0:05:39]} 26. Ra1 {[%emt 0:00:54]} Rxa1 {[%emt 0:02:48]} 27. Bxa1 {[%emt 0:00:40]} Nb6 {[%emt 0:03:30]} 28. Qc2 {[%emt 0:00:30]} f5 {[%emt 0:01:42]} 29. d5 {[%emt 0:00:31]} Qxd5 {[%emt 0:00:57]} 30. Bd4 {[%emt 0:00:13]} Na4 {[%emt 0:01:08]} 31. Rc1 {[%emt 0:00:44]} Qb5 {[%emt 0:02:31]} 32. g4 {[%emt 0:00:30]} g6 {[%emt 0:03:00]} 33. Qxc4+ {[%emt 0:00:23]} Qxc4 {[%emt 0:00:20]} 34. Rxc4 {[%emt 0:00:01]} Nb2 {[%emt 0:00:52]} 35. Rc8+ {[%emt 0:01:07]} Kf7 {[%emt 0:00:02]} 36. Rc7+ {[%emt 0:00:09]} Ke6 {[%emt 0:00:05]} 37. gxf5+ {[%emt 0:00:14]} gxf5 {[%emt 0:01:15]} 38. Rxh7 {[%emt 0:00:57]} Nd3 {[%emt 0:00:05]} 39. Rh6+ {[%emt 0:00:32]} Kd5 {[%emt 0:00:11]} 40. Rh5 {[%emt 0:00:00]} Ke6 {[%emt 0:00:00]} 41. Rh6+ {[%emt 0:10:25]} Kd5 {[%emt 0:00:39]} 42. Rb6 {[%emt 0:00:46]} Rxb6 {[%emt 0:12:10]} 43. Bxb6 {[%emt 0:00:02]} Ke6 {[%emt 0:10:37]} 44. Bc7 {[%emt 0:07:48]} Kf6 {[%emt 0:00:33]} 45. Bg3 {[%emt 0:00:18]} Kg5 {[%emt 0:00:27]} 46. h3 {[%emt 0:00:09]} Kh5 {[%emt 0:03:20]} 47. Kf1 {[%emt 0:00:07]} Nc5 {[%emt 0:00:32]} 48. Bd6 {[%emt 0:10:32]} Nd3 {[%emt 0:01:02]} 49. Be7 {[%emt 0:00:09]} Ne5 {[%emt 0:00:23]} 50. Bf6 {[%emt 0:01:21]} Nf3 {[%emt 0:00:31]} 51. Bc3 {[%emt 0:00:29]} Kg5 {[%emt 0:01:28]} 52. Kg2 {[%emt 0:00:58]} Kg6 {[%emt 0:01:25]} 53. Kg3 {[%emt 0:00:54]} Kg5 {[%emt 0:00:11]} 54. Ba5 {[%emt 0:02:30]} Ne5 {[%emt 0:00:15]} 55. h4+ {[%emt 0:01:26]} Kg6 {[%emt 0:00:31]} 56. Bc3 {[%emt 0:00:42]} Nf3 {[%emt 0:02:30]} 57. Ba1 {[%emt 0:00:31]} Ne1 {[%emt 0:00:39]} 58. Bh8 {[%emt 0:00:28]} Nd3 {[%emt 0:00:42]} 59. Bc3 {[%emt 0:00:27]} Kh5 {[%emt 0:00:24]} 60. Ba1 {[%emt 0:00:35]} Kg6 {[%emt 0:00:39]} 61. Bc3 {[%emt 0:00:32]} Kh5 {[%emt 0:00:14]} 62. Bd4 {[%emt 0:00:08]} Kg6 {[%emt 0:00:08]} 63. f3 {[%emt 0:00:05]} exf3 {[%emt 0:00:36]} 64. Kxf3 {[%emt 0:00:07]} Kh5 {[%emt 0:00:19]} 65. Bf6 {[%emt 0:00:06]} Kg6 {[%emt 0:00:08] Ke4} 66. Ke2 {[%emt 0:01:27]} 1/2-1/2

[Event "EYCC Open-U16 2019"]
[Site "Bratislava"]
[Date "2019.08.07"]
[Round "6.6"]
[White "Van Dael, Siem"]
[Black "Sargsyan, Tigran R."]
[Result "1-0"]
[ECO "C12"]
[WhiteElo "2319"]
[BlackElo "2314"]
[Annotator "NA"]
[PlyCount "49"]
[EventDate "2019.08.02"]
[EventType "swiss"]
[EventCountry "SVK"]
[SourceTitle "playchess.com"]
[Source "ChessBase"]
[SourceQuality "1"]
[TimeControl "40/5400+30:1800+30"]

1. e4 {[%emt 0:00:00]} e6 {[%emt 0:00:00]} 2. d4 {[%emt 0:00:00]} d5 {[%emt 0:00:00]} 3. Nc3 {[%emt 0:00:00]} Nf6 {[%emt 0:00:03]} 4. Bg5 {[%emt 0:00:00]} Bb4 {[%emt 0:00:09]} 5. e5 {[%emt 0:00:02]} h6 {[%emt 0:00:17]} 6. Bc1 {[%emt 0:00:06]} Ne4 {[%emt 0:01:07]} 7. Qg4 {[%emt 0:00:22]} g6 {[%emt 0:13:57]} 8. a3 {[%emt 0:00:39]} Bxc3+ {[%emt 0:01:15]} 9. bxc3 {[%emt 0:00:06]} c5 {[%emt 0:01:14]} 10. Bd3 {[%emt 0:00:08]} cxd4 {[%emt 0:06:20]} 11. Ne2 {[%emt 0:00:06]} dxc3 {[%emt 0:09:44]} 12. Bxe4 {[%emt 0:00:06]} dxe4 {[%emt 0:00:29]} 13. Ng3 {[%emt 0:00:03]} Qd4 {[%emt 0:08:13]} 14. Nxe4 {[%emt 0:02:22]} Qxe5 {[%emt 0:07:57]} 15. O-O {[%emt 0:00:16]} Nc6 {[%emt 0:06:23]} 16. Re1 {[%emt 0:00:06]} Kf8 {[%emt 0:02:02]} 17. Bf4 {[%emt 0:10:49]} Qf5 {[%emt 0:05:17]} 18. Qh4 {[%emt 0:01:47]} Kg7 {[%emt 0:00:57]} 19. Nd6 {[%emt 0:01:13]} Qc5 {[%emt 0:05:07]} 20. Rab1 {[%emt 0:18:33]} e5 {[%emt 0:15:21]} 21. Ne8+ {[%emt 0:04:44]} Kf8 {[%emt 0:06:40]} 22. Qf6 {[%emt 0:01:17]} Rh7 {[%emt 0:03:14]} 23. Bxe5 {[%emt 0:01:13]} Nxe5 {[%emt 0:00:39]} 24. Rxe5 {[%emt 0:00:12]} Qxa3 {[%emt 0:03:08]} 25. Nc7 {[%emt 0:01:07]} 1-0

[Event "EYCC Open-U16 2019"]
[Site "Bratislava"]
[Date "2019.08.07"]
[Round "6.7"]
[White "Stoyanov, Tsvetan"]
[Black "Malovanyi, Yulian"]
[Result "1/2-1/2"]
[ECO "B38"]
[WhiteElo "2387"]
[BlackElo "2204"]
[Annotator "NA"]
[PlyCount "105"]
[EventDate "2019.08.02"]
[EventType "swiss"]
[EventCountry "SVK"]
[SourceTitle "playchess.com"]
[Source "ChessBase"]
[SourceQuality "1"]
[TimeControl "40/5400+30:1800+30"]

1. e4 {[%emt 0:00:00]} c5 {[%emt 0:00:00]} 2. Nf3 {[%emt 0:00:00]} Nc6 {[%emt 0:00:00]} 3. d4 {[%emt 0:00:01]} cxd4 {[%emt 0:00:16]} 4. Nxd4 {[%emt 0:00:05]} g6 {[%emt 0:00:18]} 5. c4 {[%emt 0:00:15]} Bg7 {[%emt 0:00:21]} 6. Be3 {[%emt 0:00:05]} Nf6 {[%emt 0:00:14]} 7. Nc3 {[%emt 0:00:14]} O-O {[%emt 0:00:12]} 8. Be2 {[%emt 0:00:16]} d6 {[%emt 0:00:13]} 9. h3 {[%emt 0:00:37]} Nxd4 {[%emt 0:08:12]} 10. Bxd4 {[%emt 0:00:09]} Bd7 {[%emt 0:00:18]} 11. O-O {[%emt 0:00:07]} Bc6 {[%emt 0:00:12]} 12. Qc2 {[%emt 0:00:13]} a5 {[%emt 0:01:11]} 13. Rad1 {[%emt 0:00:15]} Nd7 {[%emt 0:01:33]} 14. Bxg7 {[%emt 0:00:05]} Kxg7 {[%emt 0:00:09]} 15. Bg4 {[%emt 0:00:02]} Qe8 {[%emt 0:32:44]} 16. Bxd7 {[%emt 0:01:24]} Bxd7 {[%emt 0:00:17]} 17. a4 {[%emt 0:17:14]} Rc8 {[%emt 0:02:17]} 18. b3 {[%emt 0:00:09]} Rc5 {[%emt 0:02:22]} 19. Nd5 {[%emt 0:02:43]} Bc6 {[%emt 0:03:38]} 20. Rfe1 {[%emt 0:07:07]} f6 {[%emt 0:04:01]} 21. Qb2 {[%emt 0:09:08]} Rf7 {[%emt 0:04:57]} 22. Re3 {[%emt 0:03:17]} Qd8 {[%emt 0:03:24]} 23. h4 {[%emt 0:18:04]} Qd7 {[%emt 0:12:27]} 24. Qe2 {[%emt 0:04:24]} Kh8 {[%emt 0:06:01]} 25. f4 {[%emt 0:07:09]} e5 {[%emt 0:04:29]} 26. fxe5 {[%emt 0:15:02]} Bxd5 {[%emt 0:02:14]} 27. exd5 {[%emt 0:00:44]} fxe5 {[%emt 0:00:25]} 28. Rf1 {[%emt 0:04:49]} Rc8 {[%emt 0:02:57]} 29. Rxf7 {[%emt 0:03:23]} Qxf7 {[%emt 0:00:08]} 30. Rf3 {[%emt 0:00:15]} Qe7 {[%emt 0:00:12]} 31. Qf2 {[%emt 0:03:34]} Kg8 {[%emt 0:01:51]} 32. h5 {[%emt 0:03:49]} Rf8 {[%emt 0:02:25]} 33. hxg6 {[%emt 0:00:52]} hxg6 {[%emt 0:00:12]} 34. Rxf8+ {[%emt 0:00:42]} Qxf8 {[%emt 0:00:01]} 35. Qa7 {[%emt 0:00:09]} Qf4 {[%emt 0:01:15]} 36. Qb8+ {[%emt 0:00:40]} Kg7 {[%emt 0:00:40]} 37. Qxb7+ {[%emt 0:00:12]} Kh6 {[%emt 0:00:54]} 38. Qb6 {[%emt 0:00:11]} Qc1+ {[%emt 0:00:43]} 39. Kh2 {[%emt 0:00:41]} Qf4+ {[%emt 0:00:33]} 40. Kg1 {[%emt 0:00:00]} Qc1+ {[%emt 0:00:00]} 41. Kh2 {[%emt 0:12:12]} Qf4+ {[%emt 0:03:58]} 42. g3 {[%emt 0:00:02]} Qd2+ {[%emt 0:00:14]} 43. Kg1 {[%emt 0:03:09]} Qe1+ {[%emt 0:01:13]} 44. Kg2 {[%emt 0:00:16]} Qe4+ {[%emt 0:00:06]} 45. Kf2 {[%emt 0:01:02]} Qc2+ {[%emt 0:01:16]} 46. Kg1 {[%emt 0:00:18]} Qb1+ {[%emt 0:02:02]} 47. Kf2 {[%emt 0:08:48]} Qc2+ {[%emt 0:00:19]} 48. Kf1 {[%emt 0:00:28]} Qb1+ {[%emt 0:01:06]} 49. Kg2 {[%emt 0:00:56]} Qe4+ {[%emt 0:00:08]} 50. Kh2 {[%emt 0:00:21]} Qe2+ {[%emt 0:00:15]} 51. Kg1 {[%emt 0:01:11]} Qe1+ {[%emt 0:00:06]} 52. Kg2 {[%emt 0:00:05]} Qe4+ {[%emt 0:00:02]} 53. Kf2 1/2-1/2